bitfinex/quotes_ETHUSD_20220201
["timestamp","ask_amount","ask_price","bid_price","bid_amount"]
[1643695714668,0.1832,2729.2,2728.7,2.2427314]
[1643695714872,1.092,2729.2,2728.8,21.34]
[1643695715073,1.092,2729.2,2728.9,23.49252439]
[1643695715269,1.092,2729.2,2728.9,21.64]
[1643695715871,1.092,2729.2,2729.0,21.34]
[1643695720026,1.092,2729.1,2729.0,21.34]
[1643695722477,1.092,2729.1,2729.0,21.37977243]
[1643695722677,1.092,2729.1,2729.0,21.90377243]
[1643695722879,1.092,2729.1,2729.0,22.0083378]
[1643695724542,1.092,2729.1,2729.0,22.79644112]
[1643695724728,1.092,2729.1,2729.0,22.0083378]
[1643695724931,1.092,2729.1,2729.0,0.524]
[1643695725134,1.092,2729.1,2728.7,0.3543114]
[1643695727131,1.092,2729.1,2728.7,0.65372307]
[1643695727532,1.092,2729.1,2728.7,0.61862767]
[1643695728176,1.092,2729.1,2728.7,0.31862767]
[1643695728377,2.44236153,2729.7,2728.7,0.31862767]
[1643695728378,1.092,2728.9,2728.7,0.31862767]
[1643695729379,0.1832,2728.8,2728.7,0.31862767]
[1643695729980,0.1832,2728.8,2727.9,0.03885306]
[1643695730182,1.092,2728.6,2727.9,0.3]
[1643695730383,1.2752,2728.5,2727.8,0.40456537]
[1643695730579,1.092,2728.3,2727.5,0.27639994]
[1643695730784,1.092,2728.1,2727.2,2.39500285]
[1643695731285,0.1832,2728.0,2727.3,0.38684585]
[1643695731527,0.1832,2728.0,2727.3,21.72684585]
[1643695731724,1.092,2728.1,2727.3,22.54788438]
[1643695732230,1.092,2728.1,2728.0,0.40405524]
[1643695732428,1.2752,2728.1,2728.0,0.40405524]
[1643695732829,1.092,2728.1,2728.0,0.40405524]
[1643695733733,1.98578304,2728.1,2728.0,0.40405524]
[1643695733935,1.092,2728.1,2728.0,0.40405524]
[1643695734131,1.2752,2728.1,2728.0,0.40405524]
[1643695734331,1.09040417,2728.1,2728.0,0.40405524]
[1643695735169,1.09040417,2728.1,2728.0,0.35573332]
[1643695735469,1.27360417,2728.3,2728.0,0.35573332]
[1643695738673,1.09040417,2728.3,2728.0,0.35573332]
[1643695739717,1.09040417,2728.3,2728.0,0.65573332]
[1643695742777,0.1832,2728.2,2728.0,0.35573332]
[1643695743380,0.1832,2728.2,2727.0,0.19100785]
[1643695743381,2.1832,2728.2,2727.0,0.19100785]
[1643695743587,2.1832,2728.2,2726.8,0.146791]
[1643695743588,1.06719995,2727.7,2726.8,0.146791]
[1643695743777,1.09040417,2727.2,2726.8,0.146791]
[1643695743977,1.09040417,2727.2,2726.5,0.00167934]
[1643695743978,0.1832,2727.1,2726.5,0.00167934]
[1643695744181,0.1832,2727.1,2726.3,0.007]
[1643695744981,0.1832,2727.1,2726.3,0.153862]
[1643695745585,0.1832,2727.1,2726.6,0.42153602]
[1643695747744,0.13436902,2727.1,2726.6,0.42153602]
[1643695748844,1.27360417,2727.2,2726.6,0.42153602]
[1643695749045,1.27360417,2727.2,2726.6,0.72153602]
[1643695749848,4.9406,2727.6,2726.6,2.46305702]
[1643695749849,1.09040417,2727.1,2726.6,2.46305702]
[1643695750046,1.09040417,2727.1,2726.6,24.32705702]
[1643695750275,1.09040417,2727.1,2726.6,24.35716252]
[1643695751682,1.91360912,2727.1,2726.7,1.83291]
[1643695751878,1.91360912,2727.1,2726.3,0.153862]
[1643695752085,1.09040417,2726.9,2726.3,0.153862]
[1643695752884,0.89040417,2726.9,2726.3,0.153862]
[1643695753084,0.89040417,2726.9,2726.4,0.37721013]
[1643695753286,0.89040417,2726.7,2726.4,0.37721013]
[1643695753686,0.41896938,2727.0,2726.4,0.37721013]
[1643695753687,0.89040417,2726.5,2726.4,0.37721013]
[1643695753931,0.89040417,2726.5,2725.3,3.70310035]
[1643695753932,6.6,2726.4,2725.3,3.70310035]
[1643695754137,6.6,2726.4,2724.6,5.42899561]
[1643695754138,0.01257411,2725.4,2724.7,0.1]
[1643695754346,1.92215,2725.8,2724.7,0.1]
[1643695754347,0.01219135,2724.8,2724.7,0.1]
[1643695754932,1.07390417,2725.2,2724.7,0.43422544]
[1643695755135,0.89040417,2725.2,2724.7,0.43422544]
[1643695755332,0.89040417,2725.2,2724.5,0.146984]
[1643695755536,0.1834,2725.1,2724.5,0.146984]
[1643695755933,0.89040417,2725.2,2724.5,0.146984]
[1643695756334,0.89040417,2725.2,2724.6,0.76588675]
[1643695756537,0.89040417,2725.2,2725.0,0.40654033]
[1643695756940,0.89040417,2725.2,2725.0,0.70654033]
[1643695757789,0.89040417,2725.2,2725.0,0.40654033]
[1643695757996,0.89040417,2725.2,2724.6,1.03988675]
[1643695758189,0.89040417,2725.2,2724.6,0.824]
[1643695759014,0.89040417,2725.2,2724.6,0.82485926]
[1643695759195,1.00204116,2724.7,2723.7,0.92148011]
[1643695759394,1.00272839,2724.1,2723.7,0.92148011]
[1643695759594,0.89040417,2724.0,2723.8,0.04433703]
[1643695759791,0.89040417,2723.8,2723.4,1.0966625]
[1643695759996,0.89040417,2723.8,2722.7,2.2233642]
[1643695759997,0.89617256,2723.6,2722.7,2.2233642]
[1643695760195,0.89040417,2723.0,2722.7,1.77365395]
[1643695760397,0.1836,2722.9,2722.7,1.77365395]
[1643695760795,5.29040417,2722.8,2722.7,1.77365395]
[1643695760991,7.29040417,2722.8,2722.7,1.52365395]
[1643695761192,6.53754822,2722.8,2722.7,1.52365395]
[1643695761447,3.85802632,2722.8,2722.7,1.52365395]
[1643695761738,3.85802632,2722.8,2721.3,2.0]
[1643695761739,1.87038443,2722.8,2721.3,2.0]
[1643695762158,1.87729111,2722.8,2721.3,2.0]
[1643695762547,0.89040417,2721.9,2721.3,3.24510997]
[1643695762739,0.89040417,2721.9,2721.3,0.82376453]
[1643695762944,0.00690668,2722.8,2721.4,7.63877879]
[1643695763144,1.20922154,2723.3,2721.6,1.01284047]
[1643695763341,1.2032,2723.3,2721.7,2.524]
[1643695763542,1.2032,2723.3,2721.7,2.66580666]
[1643695763740,1.1829,2723.5,2721.7,2.66580666]
[1643695763741,1.53514265,2723.5,2722.8,0.33674899]
[1643695763941,0.51212341,2722.3,2722.2,5.0891406]
[1643695764142,0.51212341,2722.3,2722.2,0.42659993]
[1643695764440,0.51212341,2722.3,2722.2,0.10494252]
[1643695765047,0.51212341,2722.3,2722.2,3.90494252]
[1643695765299,0.51212341,2722.3,2722.2,6.08939825]
[1643695765478,0.51212341,2722.3,2722.2,6.11945158]
[1643695765879,0.51212341,2722.3,2722.2,6.54350494]
[1643695766075,0.51212341,2722.3,2722.2,7.38455674]
[1643695766276,0.51212341,2722.3,2722.2,8.90855674]
[1643695766478,0.01202,2723.8,2722.3,6.6]
[1643695766682,0.19562,2723.8,2722.4,4.60097663]
[1643695766882,0.1836,2724.1,2722.8,0.01278818]
[1643695767079,1.1359,2724.7,2722.9,0.524]
[1643695767080,0.38298343,2724.0,2722.9,0.524]
[1643695767280,0.38298343,2724.0,2722.3,6.556]
[1643695767281,0.1834,2723.9,2722.5,0.10494252]
[1643695767479,0.80002344,2723.4,2722.2,0.8410518]
[1643695767685,0.1836,2723.3,2722.2,2.5910518]
[1643695767880,0.80002344,2723.4,2722.2,0.03027164]
[1643695768081,0.80002344,2723.4,2721.9,0.01273162]
[1643695768082,0.1836,2723.3,2722.0,0.40398674]
[1643695768780,0.1836,2723.3,2722.0,0.43407615]
[1643695769032,0.7998144,2722.9,2722.0,0.40398674]
[1643695769239,0.1836,2722.8,2722.0,0.40398674]
[1643695769631,0.7998144,2722.9,2722.0,0.44334952]
[1643695769830,0.7998144,2722.9,2722.0,0.40398674]
[1643695770236,0.1836,2722.8,2722.1,0.441]
[1643695772034,2.34437441,2722.8,2722.2,21.34]
[1643695772232,0.1836,2722.8,2722.2,21.34]
[1643695772899,0.1836,2722.8,2722.2,21.69367982]
[1643695773094,0.1836,2722.8,2722.2,21.34]
[1643695774095,0.1836,2722.8,2722.2,21.78996703]
[1643695776097,0.1836,2722.8,2722.2,21.34]
[1643695776098,2.23878945,2722.8,2722.2,21.34]
[1643695776299,2.23878945,2722.8,2721.9,0.441]
[1643695776726,2.23878945,2722.8,2721.4,0.45390039]
[1643695776931,2.23878945,2722.8,2721.4,0.48996128]
[1643695777128,2.23878945,2722.8,2721.6,0.34661194]
[1643695777735,2.23878945,2722.8,2721.7,21.34]
[1643695777736,0.1836,2722.8,2721.7,21.34]
[1643695777931,2.0,2723.4,2721.7,21.34]
[1643695777932,0.1836,2723.3,2721.7,21.34]
[1643695778236,0.1836,2723.3,2721.8,0.441]
[1643695778430,0.9146018,2723.1,2721.8,21.781]
[1643695778629,0.1836,2723.0,2721.8,21.781]
[1643695778932,0.1836,2723.0,2721.8,21.82091421]
[1643695779133,2.1836,2723.0,2721.8,21.82091421]
[1643695779331,0.1836,2723.0,2721.8,21.82091421]
[1643695779630,0.1836,2723.0,2722.1,0.32073495]
[1643695779834,0.1836,2723.2,2722.1,0.32073495]
[1643695780677,0.1836,2723.2,2722.7,0.37105599]
[1643695780883,0.68862391,2722.8,2721.8,21.37374829]
[1643695781080,0.1836,2722.7,2721.8,21.34]
[1643695781479,0.1836,2723.2,2721.8,21.37159805]
[1643695781679,0.1836,2723.4,2721.8,21.37159805]
[1643695782481,0.91197869,2723.0,2722.6,0.44887075]
[1643695782785,0.1836,2722.9,2722.6,0.44887075]
[1643695784024,0.1836,2722.9,2722.1,21.03165735]
[1643695784426,0.1836,2723.2,2722.1,21.03165735]
[1643695784831,1.2214,2723.5,2722.2,0.441]
[1643695785030,4.65783,2724.2,2722.6,0.01297257]
[1643695785031,1.24862003,2724.2,2722.6,0.01297257]
[1643695785236,0.01250761,2724.8,2723.3,0.88847247]
[1643695785237,1.56015924,2724.8,2723.3,0.88847247]
[1643695785434,0.1835,2725.0,2723.4,2.44473976]
[1643695785632,1.54712815,2724.9,2723.9,0.01228765]
[1643695785829,0.1835,2724.9,2724.8,0.31584678]
[1643695786035,0.1446,2724.9,2724.1,0.00617123]
[1643695786228,0.1835,2725.4,2724.1,0.44717123]
[1643695786467,1.54696866,2725.3,2724.2,2.0]
[1643695786630,0.1817,2725.2,2724.3,0.441]
[1643695786835,0.35495,2726.0,2724.3,0.441]
[1643695787038,0.75350999,2725.7,2724.5,0.01264381]
[1643695787238,0.75350999,2725.7,2725.1,0.40425057]
[1643695787684,0.1834,2725.6,2725.1,0.40425057]
[1643695787884,0.1834,2725.6,2724.5,0.01264381]
[1643695788084,0.1834,2725.6,2724.4,0.441]
[1643695788284,0.1834,2725.6,2724.0,21.5136097]
[1643695788285,1.1734,2725.6,2724.1,2.0]
[1643695788486,0.1834,2725.6,2724.2,0.1834]
[1643695788689,1.1734,2725.6,2724.2,0.1834]
[1643695788885,0.1834,2725.6,2724.3,0.441]
[1643695789094,0.14706,2725.6,2724.4,0.1834]
[1643695789290,0.14706,2725.6,2724.3,0.441]
[1643695789489,0.1481,2725.5,2724.3,0.441]
[1643695789685,0.1481,2725.5,2724.3,23.96456]
[1643695789889,0.91189022,2725.8,2724.4,0.1834]
[1643695790087,0.1482,2725.7,2724.4,0.1834]
[1643695790288,0.05984257,2725.5,2724.5,0.441]
[1643695790487,0.1482,2725.4,2724.5,0.441]
[1643695790887,0.1482,2725.4,2724.8,0.42432472]
[1643695791537,0.17922998,2725.4,2724.8,0.42432472]
[1643695791935,0.17922998,2725.4,2724.5,0.441]
[1643695792153,0.99,2725.2,2724.5,0.441]
[1643695792336,0.99,2725.2,2724.4,0.1834]
[1643695792337,2.94038736,2725.1,2724.4,0.1834]
[1643695792536,0.33046,2725.1,2724.4,0.1834]
[1643695793640,0.33046,2725.1,2724.2,0.4328409]
[1643695794141,0.1834,2725.1,2724.7,0.31607855]
[1643695794346,0.1834,2725.2,2724.7,0.31607855]
[1643695794741,0.03102998,2725.4,2724.7,0.31607855]
[1643695795679,0.1834,2725.3,2724.7,0.31607855]
[1643695797181,0.03102998,2725.4,2724.7,0.31607855]
[1643695797811,0.03102998,2725.4,2724.6,0.1834]
[1643695797988,0.03102998,2725.4,2724.4,0.1834]
[1643695797989,1.93029715,2725.4,2724.4,0.1834]
[1643695798184,2.33046,2725.3,2724.0,0.13819997]
[1643695798586,0.33046,2725.3,2724.1,0.1834]
[1643695798792,0.34647426,2725.2,2724.4,0.39792186]
[1643695799053,1.02000653,2725.1,2724.4,0.39792186]
[1643695800056,2.10420168,2725.0,2724.1,0.1834]
[1643695800346,2.10420168,2725.0,2724.0,0.13819997]
[1643695800347,0.1834,2724.9,2724.0,0.13819997]
[1643695800551,0.33046,2724.9,2724.0,0.13819997]
[1643695800747,2.16096622,2724.8,2724.0,0.13819997]
[1643695800953,0.1834,2724.7,2724.0,0.13819997]
[1643695801152,0.90911735,2724.4,2724.0,0.13819997]
[1643695801749,0.1834,2724.8,2724.0,0.13819997]
[1643695801750,2.41075191,2724.8,2724.0,0.13819997]
[1643695801984,2.9121688,2725.0,2724.0,0.13819997]
[1643695802150,0.85960157,2725.0,2724.0,0.13819997]
[1643695802453,2.79372473,2724.9,2724.0,0.13819997]
[1643695802692,0.67620157,2724.8,2724.0,0.13819997]
[1643695802887,0.67620157,2724.8,2724.4,0.44831323]
[1643695803107,0.67620157,2724.9,2724.0,0.13819997]
[1643695803288,0.67620157,2724.9,2724.1,0.1834]
[1643695803489,0.33379278,2724.9,2724.1,0.1834]
[1643695803691,0.14706,2725.0,2724.1,0.1834]
[1643695803893,0.89939287,2724.8,2723.5,20.45459322]
[1643695804093,0.89939287,2724.8,2723.7,0.1835]
[1643695804292,1.23972717,2725.0,2724.2,0.3958084]
[1643695804493,0.33046,2725.0,2724.2,0.3958084]
[1643695804690,2.40094639,2725.0,2723.6,0.1834]
[1643695805288,0.33046,2725.0,2723.6,0.1834]
[1643695805490,0.73422456,2724.7,2723.6,0.1834]
[1643695805890,0.73422456,2724.7,2724.3,0.43703469]
[1643695806089,0.73422456,2724.7,2723.6,0.1834]
[1643695806737,0.73422456,2724.7,2723.6,21.5234]
[1643695806936,1.54700772,2724.6,2723.6,21.5234]
[1643695807134,1.54700772,2724.5,2723.6,21.5234]
[1643695807337,1.54700772,2724.4,2723.6,21.5234]
[1643695807534,0.33046,2725.0,2723.6,21.5234]
[1643695807834,1.54690063,2724.9,2723.6,21.5234]
[1643695808035,1.54690063,2724.9,2724.4,0.43022854]
[1643695808336,2.32345704,2724.9,2724.4,0.43022854]
[1643695808536,1.54690063,2724.8,2724.4,0.43022854]
[1643695809137,0.8996135,2724.4,2723.6,21.55598843]
[1643695809344,0.8996135,2724.4,2723.6,0.1834]
[1643695809345,3.75427088,2724.3,2723.6,0.1834]
[1643695809548,1.54690063,2724.2,2723.5,0.1834]
[1643695809756,1.54690063,2724.2,2723.1,0.1834]
[1643695809757,2.37034544,2724.1,2723.1,0.1834]
[1643695810043,1.73030063,2724.0,2723.1,0.1834]
[1643695810279,0.72967742,2723.7,2723.2,0.43936432]
[1643695810483,1.54690063,2723.6,2723.2,0.43936432]
[1643695810682,3.09016117,2724.3,2723.2,0.43936432]
[1643695810879,1.69449176,2724.2,2723.2,0.43936432]
[1643695811078,4.17245134,2724.1,2723.2,0.43936432]
[1643695811276,1.54743176,2724.0,2723.2,0.43936432]
[1643695811477,2.05214227,2723.9,2723.2,0.43936432]
[1643695811679,1.54741652,2723.8,2723.2,0.43936432]
[1643695811881,2.0435568,2723.7,2723.2,0.43936432]
[1643695812082,2.56831517,2724.1,2723.2,0.43936432]
[1643695812279,1.54743368,2724.0,2723.2,0.43936432]
[1643695812679,3.58098,2723.9,2723.2,0.43936432]
[1643695812886,0.73874159,2724.0,2723.7,0.4107554]
[1643695813282,3.60249102,2723.9,2722.7,0.1834]
[1643695813482,2.05509527,2723.9,2722.7,0.1834]
[1643695813703,1.54746757,2723.8,2722.7,0.1834]
[1643695813931,2.32946846,2723.7,2722.7,0.1834]
[1643695814129,2.32946846,2723.7,2722.6,0.1836]
[1643695814328,2.55854315,2723.9,2723.3,0.42440545]
[1643695814536,1.54749171,2723.8,2723.3,0.42440545]
[1643695814751,0.1834,2723.7,2723.3,0.42440545]
[1643695814929,0.1834,2723.8,2723.3,0.42440545]
[1643695815131,0.1834,2723.9,2723.3,0.42440545]
[1643695816331,0.1834,2724.2,2723.3,0.42440545]
[1643695816529,1.54733567,2724.1,2723.3,0.42440545]
[1643695816731,3.3095,2724.4,2723.3,0.42440545]
[1643695816931,1.54721292,2724.3,2723.3,22.50540545]
[1643695817138,1.54721292,2724.3,2723.5,0.81872048]
[1643695817337,3.1261,2724.4,2723.5,0.81872048]
[1643695817689,3.23676099,2724.7,2723.5,0.81872048]
[1643695817928,1.73048876,2724.6,2723.6,21.5234]
[1643695818090,1.54708876,2724.5,2723.6,21.5234]
[1643695818692,1.54708876,2724.5,2723.7,0.42306202]
[1643695819698,0.1834,2724.6,2723.7,0.42306202]
[1643695819897,0.1834,2724.9,2723.7,0.42306202]
[1643695820123,1.54702676,2724.8,2723.7,0.42306202]
[1643695820295,0.1834,2724.7,2723.7,0.42306202]
[1643695820498,1.54702676,2724.6,2723.6,21.5234]
[1643695820699,2.46914285,2724.6,2723.6,21.5234]
[1643695820895,1.54702676,2724.5,2723.6,21.5234]
[1643695821098,1.54702676,2724.5,2723.6,21.56146197]
[1643695821734,1.54702676,2724.5,2724.1,0.42133093]
[1643695822134,0.1834,2724.9,2724.1,0.42133093]
[1643695822342,1.54698211,2724.8,2724.1,0.42133093]
[1643695822553,1.54698211,2724.7,2724.1,0.42133093]
[1643695822737,2.24092577,2725.1,2724.1,0.42133093]
[1643695823040,2.24092577,2725.1,2724.2,0.441]
[1643695823041,1.54695754,2725.0,2724.2,0.441]
[1643695823438,1.54695754,2724.9,2724.7,0.35648931]
[1643695823637,1.54695754,2724.8,2724.7,0.35648931]
[1643695823843,0.30742992,2725.4,2724.7,21.99648931]
[1643695823844,0.03102998,2725.4,2724.7,21.99648931]
[1643695824142,1.08126453,2725.3,2725.0,0.01279047]
[1643695824355,0.02558094,2724.9,2724.8,22.00238648]
[1643695824538,0.02558094,2724.9,2724.8,0.80796]
[1643695824738,0.02558094,2724.9,2724.8,0.6244]
[1643695825788,0.02558094,2724.9,2724.8,0.5744]
[1643695827794,0.02558094,2724.9,2724.8,0.441]
[1643695828193,0.02558094,2724.9,2724.7,0.35648931]
[1643695829034,0.02558094,2724.9,2724.8,21.34]
[1643695830247,0.02558094,2724.9,2724.7,0.39392379]
[1643695830440,0.02558094,2724.9,2724.7,0.35648931]
[1643695830841,0.02558094,2724.9,2724.7,0.39209989]
[1643695831043,0.02558094,2724.9,2724.7,0.35648931]
[1643695831240,0.02558094,2724.9,2724.8,0.22024006]
[1643695833484,0.02558094,2724.9,2724.8,21.56024006]
[1643695834084,0.02558094,2724.9,2724.8,21.59987158]
[1643695834284,0.02558094,2724.9,2724.8,21.78327158]
[1643695834686,0.02558094,2724.9,2724.8,22.61749364]
[1643695834908,0.02558094,2724.9,2724.8,22.80105364]
[1643695835085,0.02558094,2724.9,2724.8,23.10105364]
[1643695836086,0.02558094,2724.9,2724.8,23.06142212]
[1643695836286,0.02558094,2724.9,2724.8,23.69483985]
[1643695836736,0.02558094,2724.9,2724.8,1.22061779]
[1643695836938,0.02558094,2724.9,2724.8,0.93264006]
[1643695837336,0.02558094,2724.9,2724.8,0.93280006]
[1643695837539,0.02558094,2724.9,2724.8,1.41620006]
[1643695837936,0.02558094,2724.9,2724.8,22.75620006]
[1643695840993,0.02558094,2724.9,2724.8,22.57280006]
[1643695843199,0.02558094,2724.9,2724.8,23.32487976]
[1643695844036,0.02558094,2724.9,2724.8,0.93280006]
[1643695844237,0.02558094,2724.9,2724.8,0.22024006]
[1643695844636,0.0839908,2724.7,2724.4,0.18356]
[1643695844936,0.0839908,2724.7,2724.5,0.7027853]
[1643695846643,0.0839908,2724.7,2724.5,0.4027853]
[1643695846843,0.0839908,2724.7,2724.5,21.77817539]
[1643695847042,0.0839908,2724.7,2724.5,22.07817539]
[1643695847343,0.0839908,2724.7,2724.6,21.37703857]
[1643695848385,0.02558094,2724.9,2724.6,21.37703857]
[1643695848386,0.02558094,2724.9,2724.6,21.90603857]
[1643695848590,0.02558094,2724.9,2724.6,22.01031643]
[1643695848784,0.02558094,2724.9,2724.8,21.34]
[1643695848985,0.02558094,2724.9,2724.8,21.869]
[1643695849186,0.02558094,2724.9,2724.8,22.39212612]
[1643695849389,0.02558094,2724.9,2724.8,29.9560409]
[1643695849587,0.03102998,2725.4,2724.8,29.06483786]
[1643695849987,0.03102998,2725.4,2725.0,0.91705]
[1643695850189,0.03102998,2725.4,2725.1,21.869]
[1643695855184,0.05964463,2725.3,2725.1,21.869]
[1643695857198,0.05964463,2725.3,2725.1,0.529]
[1643695860140,0.03102998,2725.4,2725.1,0.529]
[1643695860341,1.092,2725.2,2725.1,0.529]
[1643695861346,2.6385462,2725.2,2725.1,0.529]
[1643695861949,2.6385462,2725.2,2724.9,0.3539653]
[1643695862145,1.092,2725.0,2724.9,0.31690695]
[1643695862345,1.092,2725.0,2724.9,0.34997721]
[1643695862546,1.092,2725.0,2724.9,0.31690695]
[1643695862790,1.092,2725.0,2724.9,0.35459159]
[1643695866092,1.092,2725.0,2724.9,0.31690695]
[1643695866534,2.63855932,2725.0,2724.9,0.31690695]
[1643695867948,2.63855932,2725.0,2724.9,0.28587697]
[1643695869178,2.63855932,2725.0,2724.9,0.31966969]
[1643695869446,2.63855932,2725.0,2724.9,0.84866969]
[1643695870284,1.092,2725.0,2724.9,0.84866969]
[1643695870686,1.092,2725.0,2724.9,3.84866969]
[1643695870883,1.092,2725.0,2724.9,25.18866969]
[1643695871987,1.092,2725.0,2724.9,0.84866969]
[1643695872485,1.092,2725.0,2724.9,1.29843697]
[1643695872683,1.092,2725.0,2724.9,5.74843697]
[1643695873086,1.092,2725.0,2724.9,27.08843697]
[1643695873686,1.092,2725.0,2724.9,28.00549697]
[1643695875437,0.1834,2725.8,2725.1,0.9170554]
[1643695875637,1.092,2725.6,2725.4,0.83439157]
[1643695875842,0.1834,2726.0,2725.4,1.13439157]
[1643695875843,2.63832798,2725.5,2725.4,1.13439157]
[1643695876040,2.63832798,2725.5,2725.4,0.29900445]
[1643695876238,2.63832798,2725.5,2725.2,22.44062]
[1643695876441,2.63832798,2725.4,2725.3,0.529]
[1643695877243,2.63832798,2725.4,2725.3,0.71256]
[1643695878089,2.63832798,2725.4,2725.3,1.01256]
[1643695880293,2.69807159,2725.4,2725.3,1.01256]
[1643695883955,2.69807159,2725.4,2725.3,1.9295651]
[1643695884152,2.69807159,2725.4,2725.3,1.96111628]
[1643695884553,2.69807159,2725.4,2725.3,1.9663577]
[1643695884757,2.69807159,2725.4,2725.3,2.37029585]
[1643695885185,1.15174361,2725.4,2725.3,2.37029585]
[1643695885386,0.05974361,2725.4,2725.3,2.37029585]
[1643695885590,0.05974361,2725.4,2725.3,4.7663577]
[1643695886193,1.15174361,2725.4,2725.3,2.2663577]
[1643695886396,2.69805279,2725.4,2725.3,2.2663577]
[1643695886595,2.69805279,2725.4,2725.3,26.5063577]
[1643695887798,2.69805279,2725.4,2725.3,26.2063577]
[1643695887997,2.69805279,2725.4,2725.3,27.06252056]
[1643695889031,1.15174361,2725.4,2725.3,27.06252056]
[1643695891237,2.69802158,2725.4,2725.3,1.9663577]
[1643695891437,2.69802158,2725.4,2725.3,4.4163577]
[1643695892238,2.69802158,2725.4,2725.3,6.94914225]
[1643695892438,2.69802158,2725.4,2725.3,28.28914225]
[1643695892688,2.69802158,2725.4,2725.3,26.59329096]
[1643695893490,0.1834,2725.9,2725.4,6.6]
[1643695893695,8.74352612,2726.6,2725.6,23.17368]
[1643695893696,0.1834,2726.0,2725.6,23.17368]
[1643695893896,3.7242,2726.6,2725.6,23.17368]
[1643695893897,0.86181852,2726.6,2725.8,21.34]
[1643695894093,0.67841852,2726.7,2725.9,7.62056]
[1643695894291,0.67841852,2726.7,2726.0,6.63893848]
[1643695894492,0.67841852,2726.7,2726.1,0.529]
[1643695894713,0.1832,2726.6,2726.1,0.56270945]
[1643695894892,0.1832,2726.6,2726.1,1.28398342]
[1643695895095,0.1832,2726.6,2726.1,1.30087]
[1643695895096,2.86161852,2726.6,2726.1,1.30087]
[1643695895298,0.67841852,2726.6,2726.1,1.30087]
[1643695895492,0.67841852,2726.6,2726.1,0.42175046]
[1643695895693,2.1832,2726.8,2726.1,0.38417]
[1643695895893,0.86161852,2726.8,2726.1,0.68417]
[1643695896094,0.69098673,2726.7,2726.1,0.68417]
[1643695896741,0.01256821,2726.7,2726.1,0.68417]
[1643695897143,0.1832,2726.8,2726.2,0.91681]
[1643695897345,7.17963289,2727.6,2726.3,1.4457393]
[1643695897547,0.68663962,2727.1,2726.5,4.3]
[1643695897754,1.83103898,2727.9,2726.5,4.3]
[1643695897755,1.37327923,2727.9,2726.9,6.608]
[1643695897961,0.1833,2727.8,2727.2,7.52438]
[1643695898152,0.1833,2727.8,2727.3,0.89948135]
[1643695898357,0.1832,2728.1,2727.3,1.81580135]
[1643695898551,1.37327923,2728.4,2727.3,1.85561086]
[1643695898756,1.37327923,2728.4,2727.4,1.93659815]
[1643695898757,0.1832,2728.4,2727.4,1.93659815]
[1643695898956,0.1832,2728.5,2727.6,0.91632]
[1643695899152,0.1832,2728.5,2727.9,0.916249]
[1643695899351,0.1832,2728.5,2728.0,0.529]
[1643695900208,0.1832,2728.6,2728.0,0.529]
[1643695900810,0.1832,2728.7,2728.0,0.529]
[1643695901011,0.39695015,2728.6,2728.0,0.529]
[1643695901212,0.1832,2728.5,2728.0,0.529]
[1643695901611,6.6,2728.4,2727.6,0.91632]
[1643695901819,6.6,2728.4,2727.1,0.1832]
[1643695901820,0.01267909,2727.9,2727.1,0.1832]
[1643695902013,0.1832,2727.8,2727.1,0.1832]
[1643695902621,0.39829934,2727.5,2727.1,0.1832]
[1643695902823,0.1832,2727.4,2727.1,0.1832]
[1643695904157,0.1832,2727.4,2726.4,2.82028162]
[1643695904356,0.88440779,2727.0,2726.4,2.4832]
[1643695904557,0.1832,2727.4,2726.4,2.4832]
[1643695904957,0.1832,2727.4,2726.4,0.4832]
[1643695905362,0.1832,2727.4,2726.5,0.39758481]
[1643695905763,0.1832,2727.4,2726.5,0.69758481]
[1643695906368,0.69917966,2727.1,2726.5,0.69758481]
[1643695906561,0.69917966,2727.1,2726.3,0.1832]
[1643695906861,0.1832,2727.4,2726.4,0.18356]
[1643695907059,0.39829934,2727.5,2726.5,0.529]
[1643695907559,0.1832,2727.8,2726.5,0.529]
[1643695908000,0.77651903,2727.6,2726.7,0.9166442]
[1643695908402,0.77651903,2727.6,2726.7,1.2166442]
[1643695908600,0.77651903,2727.6,2726.9,0.44318954]
[1643695908801,0.95971903,2727.6,2726.7,1.2166442]
[1643695909599,0.95971903,2727.6,2726.7,0.9166442]
[1643695909803,0.95971903,2727.6,2726.8,0.43806276]
[1643695910003,0.95971903,2727.6,2726.8,0.62126276]
[1643695910201,0.95971903,2727.6,2726.8,0.1832]
[1643695910905,0.95971903,2727.6,2726.7,1.2166442]
[1643695911105,0.95971903,2727.6,2726.5,0.1832]
[1643695911456,0.95971903,2727.6,2725.8,0.10425597]
[1643695911457,0.43806539,2726.9,2726.2,2.0]
[1643695911643,0.1832,2726.8,2725.8,2.0]
[1643695911844,0.84108439,2726.4,2725.8,2.0]
[1643695912144,0.84108439,2726.4,2725.7,0.28745597]
[1643695912543,1.22126979,2726.4,2725.7,0.28745597]
[1643695912748,0.84108439,2726.4,2725.7,0.28745597]
[1643695913554,0.84108439,2726.4,2725.6,0.1834]
[1643695913848,0.84108439,2726.4,2725.4,0.1834]
[1643695914458,0.43813568,2726.2,2725.4,0.56728314]
[1643695914855,0.84108439,2726.4,2725.4,0.86728314]
[1643695915290,0.84108439,2726.4,2725.4,0.1834]
[1643695916294,1.24549587,2726.4,2725.6,0.72550734]
[1643695916492,1.24549587,2726.4,2725.7,0.1834]
[1643695916993,0.85325441,2726.4,2725.7,0.1834]
[1643695917392,0.85325441,2726.4,2725.7,0.3]
[1643695917595,0.84108439,2726.4,2725.4,0.1834]
[1643695918002,1.26320233,2726.4,2725.6,0.4203862]
[1643695918199,1.26320233,2726.4,2725.4,0.1834]
[1643695918603,1.54604137,2726.3,2725.4,0.1834]
[1643695919056,1.26320233,2726.4,2725.4,0.1834]
[1643695919245,1.26320233,2726.4,2725.6,0.38920965]
[1643695919646,1.26320233,2726.4,2725.6,0.68920965]
[1643695920248,1.26320233,2726.4,2725.4,0.1834]
[1643695920446,0.1834,2726.3,2725.3,3.38934152]
[1643695921251,0.1834,2726.3,2725.6,0.33165663]
[1643695921447,1.26320233,2726.4,2725.3,1.4005058]
[1643695921647,0.1834,2726.3,2725.3,1.4005058]
[1643695921848,0.1834,2726.3,2725.3,1.1005058]
[1643695922046,0.1834,2726.3,2725.3,3.06353328]